fUST/lending_fUST_20260604
["ID","MTS","AMOUNT","RATE_DAILY","PERIOD"]
[424063215,1780578638000,-358.51080348,0.00010912,2]
[424063206,1780578638000,-151.0,0.0001056,2]
[424063214,1780578638000,-215.125962,0.00010849,2]
[424063212,1780578638000,-176.75519003,0.00010716,2]
[424063225,1780578638000,-319.005,0.00010959,2]
[424063197,1780578638000,-151.0,0.0001056,2]
[424063181,1780578638000,-151.0,0.0001056,2]
[424063210,1780578638000,-196.96962186,0.0001056,2]
[424063184,1780578638000,-151.0,0.0001056,2]
[424063188,1780578638000,-151.0,0.0001056,2]
[424063190,1780578638000,-151.0,0.0001056,2]
[424063193,1780578638000,-151.0,0.0001056,2]
[424063191,1780578638000,-151.0,0.0001056,2]
[424063208,1780578638000,-151.0,0.0001056,2]
[424063235,1780578638000,-706.73896413,0.00011105,2]
[424063201,1780578638000,-151.0,0.0001056,2]
[424063203,1780578638000,-151.0,0.0001056,2]
[424063195,1780578638000,-151.0,0.0001056,2]
[424063204,1780578638000,-151.0,0.0001056,2]
[424063861,1780578643000,-151.0,0.000115,2]
[424063853,1780578643000,-151.0,0.00011305,2]
[424063855,1780578643000,-218.69844595,0.00011305,2]
[424063857,1780578643000,-215.125962,0.00011306,2]
[424063863,1780578643000,-151.0,0.000115,2]
[424063868,1780578643000,-154.62,0.00011579,2]
[424063885,1780578643000,-313.85987311,0.00011583,2]
[424063871,1780578643000,-347.56,0.00011581,2]
[424063870,1780578643000,-344.68,0.00011581,2]
[424063880,1780578643000,-374.59,0.00011582,2]
[424063883,1780578643000,-413.88,0.00011583,2]
[424063864,1780578643000,-151.0,0.000115,2]
[424063866,1780578643000,-720.0,0.0001153,2]
[424063859,1780578643000,-307.59898961,0.00011374,2]
[424063827,1780578643000,-1558.56893635,0.00011105,2]
[424063848,1780578643000,-151.0,0.00011305,2]
[424063850,1780578643000,-151.0,0.00011305,2]
[424063844,1780578643000,-17818.04372784,0.00011305,2]
[424063846,1780578643000,-151.0,0.00011305,2]
[424063842,1780578643000,-521032.6600157,0.00011305,2]
[424063840,1780578643000,-151.0,0.000113,2]
[424063831,1780578643000,-172.39408671,0.00011205,2]
[424063834,1780578643000,-204.01762153,0.00011298,2]
[424063836,1780578643000,-151.0,0.000113,2]
[424063832,1780578643000,-154.55347878,0.00011298,2]
[424063829,1780578643000,-201.19582549,0.00011105,2]
[424063838,1780578643000,-151.0,0.000113,2]
[424063882,1780578643000,-376.64,0.00011582,2]
[424063824,1780578643000,-10072.64522678,0.00011105,2]
[424063851,1780578643000,-151.0,0.00011305,2]
[424063878,1780578643000,-366.32,0.00011581,2]
[424063895,1780578643000,-160.0,0.000116,2]
[424063901,1780578643000,-421.29028139,0.00011621,3]
[424063945,1780578643000,-242.28254857,0.00011983,3]
[424063943,1780578643000,-2421.22071132,0.000119,2]
[424063939,1780578643000,-151.0,0.000118,2]
[424063941,1780578643000,-200.0,0.00011898,2]
[424063937,1780578643000,-151.0,0.000118,2]
[424063947,1780578643000,-3425.47681924,0.00012,2]
[424063949,1780578643000,-1998.77092,0.00012,2]
[424063899,1780578643000,-614.77525173,0.00011612,2]
[424063931,1780578643000,-151.0,0.000118,2]
[424063933,1780578643000,-151.0,0.000118,2]
[424063920,1780578643000,-1415.0,0.00011724,2]
[424063914,1780578643000,-249.07,0.00011724,2]
[424063922,1780578643000,-2206.0,0.00011724,2]
[424063916,1780578643000,-284.298,0.00011724,2]
[424063918,1780578643000,-1837.0,0.00011724,2]
[424063935,1780578643000,-151.0,0.000118,2]
[424063928,1780578643000,-202.222,0.00011724,2]
[424063929,1780578643000,-215.125962,0.00011762,2]
[424063887,1780578643000,-443.67,0.00011583,2]
[424063903,1780578643000,-219.189,0.00011652,2]
[424063889,1780578643000,-428.31,0.00011583,2]
[424063905,1780578643000,-151.0,0.00011662,2]
[424063909,1780578643000,-4674.59879863,0.00011662,2]
[424063891,1780578643000,-151.0,0.000116,2]
[424063897,1780578643000,-293.0,0.000116,2]
[424063893,1780578643000,-151.0,0.000116,2]
[424063911,1780578643000,-150.293,0.00011724,2]
[424063913,1780578643000,-150.334,0.00011724,2]
[424063924,1780578643000,-3631.0,0.00011724,2]
[424063926,1780578643000,-743.0,0.00011724,2]
[424063907,1780578643000,-151.0,0.00011662,2]
[424064202,1780578646000,-927.19930424,0.00010994,2]
[424064229,1780578646000,-2513.87468371,0.00012,2]
[424064237,1780578646000,-253.7425319,0.00012,2]
[424064228,1780578646000,-1939.34405108,0.00010994,2]
[424064232,1780578646000,-5500.0,0.00012,2]
[424065619,1780579335000,6218.36958488,7.6e-05,2]
[424065686,1780579831000,-179.46457805,9.958e-05,2]
[424065684,1780579831000,-5000.0,9.859e-05,2]
[424065688,1780579831000,-15649.68542173,0.00010013,2]
[424065700,1780579832000,-425.97873272,0.00010013,2]
[424065723,1780579832000,-300.0,0.00010212,2]
[424065719,1780579832000,-300.0,0.00010212,2]
[424065711,1780579832000,-327.31497,0.00010013,2]
[424065715,1780579832000,-152.0,0.00010194,7]
[424065717,1780579832000,-152.0,0.00010194,7]
[424065703,1780579832000,-3596.14083135,0.00010013,2]
[424065713,1780579832000,-0.8800442,0.00010013,2]
[424065725,1780579832000,-300.0,0.00010212,2]
[424065727,1780579832000,-300.0,0.00010212,2]
[424065729,1780579832000,-300.0,0.00010212,2]
[424065732,1780579832000,-300.0,0.00010212,2]
[424065734,1780579832000,-71.16284868,0.00010212,2]
[424065731,1780579832000,-300.0,0.00010212,2]
[424065721,1780579832000,-300.0,0.00010212,2]
[424065857,1780579838000,-600.0,0.00010415,2]
[424065855,1780579838000,-300.0,0.00010212,2]
[424065859,1780579838000,-161.344471,0.00010579,2]
[424065849,1780579838000,-300.0,0.00010212,2]
[424065841,1780579838000,-3877.71697174,0.0001011,2]
[424065843,1780579838000,-228.83715132,0.00010212,2]
[424065851,1780579838000,-300.0,0.00010212,2]
[424065845,1780579838000,-300.0,0.00010212,2]
[424065861,1780579838000,-3283.90194017,0.00010678,2]
[424065847,1780579838000,-300.0,0.00010212,2]
[424065853,1780579838000,-300.0,0.00010212,2]
[424065863,1780579838000,-1650.0,0.00010959,2]
[424065865,1780579838000,-3177.84449737,0.00010959,2]
[424065887,1780579838000,-1505.41433911,0.00011316,2]
[424065890,1780579838000,-7036.85132231,0.00011316,2]
[424065867,1780579838000,-11822.15550253,0.00010959,2]
[424065884,1780579838000,-8493.2679018,0.00011316,2]
[424065882,1780579838000,-151.0,0.000112,2]
[424065868,1780579838000,-500.0,0.00011004,2]
[424065886,1780579838000,-380.972748,0.00011316,2]
[424065871,1780579838000,-500.0,0.00011004,2]
[424065870,1780579838000,-500.0,0.00011004,2]
[424065878,1780579838000,-29374.00746527,0.00011005,2]
[424065875,1780579838000,-47429.71632357,0.00011005,2]
[424065873,1780579838000,-484.72913163,0.00011004,2]
[424065880,1780579838000,-151.0,0.000112,2]
[424066144,1780579840000,-2193.7,0.00011316,2]
[424066142,1780579840000,-152.0,0.00010195,7]
[424066143,1780579840000,-361.72724388,0.00011316,2]
[424066493,1780579843000,-161.344471,0.00011322,2]
[424066490,1780579843000,-151.0,0.00011316,2]
[424066495,1780579843000,-720.0,0.00011457,2]
[424066483,1780579843000,-152.0,0.00010198,7]
[424066486,1780579843000,-1246.62269966,0.00011316,2]
[424066489,1780579843000,-4898.11557996,0.00011316,2]
[424066498,1780579843000,-151.0,0.000115,2]
[424066484,1780579843000,-7332.74108838,0.00011316,2]
[424066502,1780579843000,-565.05099148,0.00011582,2]
[424066512,1780579843000,-338.27216894,0.00011582,2]
[424066510,1780579843000,-187.92898275,0.00011582,2]
[424066508,1780579843000,-190.47852387,0.00011582,2]
[424066496,1780579843000,-151.0,0.000115,2]
[424066500,1780579843000,-318.15934205,0.00011582,2]
[424066504,1780579843000,-553.6781813,0.00011582,2]
[424066506,1780579843000,-792.85392612,0.00011582,2]
[424066514,1780579843000,-44.01720205,0.00011582,2]
[424066810,1780579846000,-695.36227985,0.00012558,2]
[424066797,1780579846000,-200.0,0.00012397,2]
[424066800,1780579846000,-151.0,0.000124,2]
[424066804,1780579846000,-667.62180907,0.000125,2]
[424066802,1780579846000,-151.0,0.000124,2]
[424066805,1780579846000,-151.0,0.000125,2]
[424066807,1780579846000,-151.0,0.000125,2]
[424066808,1780579846000,-695.36227985,0.00012539,2]
[424066812,1780579846000,-864.0,0.00012602,2]
[424066820,1780579846000,-151.0,0.000127,2]
[424066811,1780579846000,-151.0,0.000126,2]
[424066785,1780579846000,-161.344471,0.00012064,2]
[424066817,1780579846000,-151.0,0.000127,2]
[424066821,1780579846000,-530.0,0.0001276,2]
[424066815,1780579846000,-151.0,0.000127,2]
[424066819,1780579846000,-796.0,0.000127,2]
[424066823,1780579846000,-500.0,0.00012793,2]
[424066825,1780579846000,-150.52,0.000128,2]
[424066826,1780579846000,-151.0,0.000128,2]
[424066828,1780579846000,-161.344471,0.00012806,2]
[424066814,1780579846000,-151.0,0.000127,2]
[424066795,1780579846000,-151.0,0.000123,2]
[424066787,1780579846000,-151.0,0.000121,2]
[424066789,1780579846000,-151.0,0.000121,2]
[424066835,1780579846000,-151.0,0.000129,2]
[424066745,1780579846000,-557.35554274,0.00011582,2]
[424066747,1780579846000,-460.77456622,0.00011613,2]
[424066749,1780579846000,-760.52142604,0.00011647,2]
[424066755,1780579846000,-2870.47857396,0.00011647,2]
[424066763,1780579846000,-151.0,0.000118,2]
[424066761,1780579846000,-3629.13891625,0.0001176,2]
[424066757,1780579846000,-743.0,0.00011647,2]
[424066765,1780579846000,-151.0,0.000118,2]
[424066759,1780579846000,-202.222,0.00011647,2]
[424066768,1780579846000,-29238.13504515,0.00012,2]
[424066770,1780579846000,-150.52,0.00012,2]
[424066766,1780579846000,-152.0,0.00011883,2]
[424066772,1780579846000,-500.0,0.00012,2]
[424066774,1780579846000,-151.61,0.00012,2]
[424066775,1780579846000,-151.0,0.00012,2]
[424066777,1780579846000,-151.0,0.00012,2]
[424066779,1780579846000,-2075.0,0.00012,2]
[424066781,1780579846000,-151.0,0.00012,2]
[424066783,1780579846000,-1057.75709216,0.00012063,2]
[424066791,1780579846000,-499.99999999,0.00012154,2]
[424066793,1780579846000,-151.0,0.000123,2]
[424066829,1780579846000,-103495.55014379,0.00012868,9]
[424066799,1780579846000,-150.52,0.000124,2]
[424066833,1780579846000,-151.0,0.00012868,2]
[424066887,1780579846000,-500.0,0.00013698,2]
[424066883,1780579846000,-600.0978,0.00013698,2]
[424066870,1780579846000,-151.0,0.000135,2]
[424066891,1780579846000,-500.0,0.00013698,2]
[424066881,1780579846000,-151.0,0.000136,2]
[424066893,1780579846000,-500.0,0.00013698,2]
[424066897,1780579846000,-500.0,0.00013698,2]
[424066899,1780579846000,-500.0,0.00013698,2]
[424066895,1780579846000,-500.0,0.00013698,2]
[424066901,1780579846000,-500.0,0.00013698,2]
[424066912,1780579846000,-500.0,0.00013698,2]
[424066902,1780579846000,-541.3030681,0.00013698,2]
[424066914,1780579846000,-577.88,0.00013698,2]
[424066910,1780579846000,-505.63870615,0.00013698,2]
[424066906,1780579846000,-500.0,0.00013698,2]
[424066904,1780579846000,-500.0,0.00013698,2]
[424066916,1780579846000,-501.56243466,0.00013698,2]
[424066908,1780579846000,-500.0,0.00013698,2]
[424066920,1780579846000,-500.0,0.00013698,2]
[424066922,1780579846000,-500.0,0.00013698,2]
[424066837,1780579846000,-151.0,0.00013,2]
[424066885,1780579846000,-590.2685,0.00013698,2]
[424066889,1780579846000,-500.0,0.00013698,2]
[424066918,1780579846000,-758.87,0.00013698,2]
[424066877,1780579846000,-150.52,0.000136,2]
[424066831,1780579846000,-201.18754115,0.00012868,2]
[424066879,1780579846000,-151.0,0.000136,2]
[424066834,1780579846000,-255.5198537,0.00012895,2]
[424066839,1780579846000,-151.0,0.00013,2]
[424066840,1780579846000,-151.0,0.00013,2]
[424066853,1780579846000,-151.0,0.000132,2]
[424066844,1780579846000,-151.0,0.00013,2]
[424066858,1780579846000,-151.0,0.000133,2]
[424066845,1780579846000,-151.0,0.00013,2]
[424066856,1780579846000,-151.0,0.000133,2]
[424066855,1780579846000,-151.0,0.000132,2]
[424066842,1780579846000,-151.0,0.00013,2]
[424066860,1780579846000,-151.0,0.000133,2]
[424066848,1780579846000,-150.52,0.000132,2]
[424066875,1780579846000,-151.0,0.000135,2]
[424066872,1780579846000,-151.0,0.000135,2]
[424066866,1780579846000,-500.0,0.00013467,2]
[424066868,1780579846000,-324.844,0.00013498,2]
[424066862,1780579846000,-297.55996369,0.00013365,14]
[424066847,1780579846000,-151.0,0.000131,2]
[424066864,1780579846000,-151.0,0.000134,2]
[424066851,1780579846000,-151.0,0.000132,2]
[424066874,1780579846000,-151.0,0.000135,2]
[424066959,1780579847000,-500.0,0.00013698,2]
[424066975,1780579847000,-595.45,0.00013698,2]
[424066967,1780579847000,-2756.08,0.00013698,2]
[424066969,1780579847000,-500.68,0.00013698,2]
[424066971,1780579847000,-500.0,0.00013698,2]
[424066973,1780579847000,-500.0,0.00013698,2]
[424066963,1780579847000,-500.0,0.00013698,2]
[424066990,1780579847000,-500.0,0.00013698,2]
[424066988,1780579847000,-500.0,0.00013698,2]
[424066986,1780579847000,-500.0,0.00013698,2]
[424066976,1780579847000,-500.0,0.00013698,2]
[424066992,1780579847000,-500.0,0.00013698,2]
[424066994,1780579847000,-501.37857669,0.00013698,2]
[424066961,1780579847000,-1076.22,0.00013698,2]
[424066978,1780579847000,-500.0,0.00013698,2]
[424066984,1780579847000,-500.0,0.00013698,2]
[424066965,1780579847000,-500.0,0.00013698,2]
[424066926,1780579847000,-500.0,0.00013698,2]
[424066957,1780579847000,-500.0,0.00013698,2]
[424066980,1780579847000,-500.0,0.00013698,2]
[424066927,1780579847000,-500.0,0.00013698,2]
[424066924,1780579847000,-500.0,0.00013698,2]
[424066935,1780579847000,-500.0,0.00013698,2]
[424066931,1780579847000,-500.0,0.00013698,2]
[424066933,1780579847000,-613.57729049,0.00013698,2]
[424066937,1780579847000,-500.0,0.00013698,2]
[424066939,1780579847000,-500.0,0.00013698,2]
[424066929,1780579847000,-500.0,0.00013698,2]
[424066941,1780579847000,-500.0,0.00013698,2]
[424066942,1780579847000,-513.1759036,0.00013698,2]
[424066944,1780579847000,-500.0,0.00013698,2]
[424066946,1780579847000,-500.0,0.00013698,2]
[424066950,1780579847000,-595.52855498,0.00013698,2]
[424066948,1780579847000,-502.08957116,0.00013698,2]
[424066952,1780579847000,-500.0,0.00013698,2]
[424066955,1780579847000,-500.0,0.00013698,2]
[424066954,1780579847000,-500.0,0.00013698,2]
[424066982,1780579847000,-500.0,0.00013698,2]
[424067016,1780579847000,-251.82158532,0.00013698,2]
[424066996,1780579847000,-500.0,0.00013698,2]
[424067046,1780579847000,-502.96075184,0.00013698,2]
[424067044,1780579847000,-500.0,0.00013698,2]
[424067047,1780579847000,-500.0,0.00013698,2]
[424067062,1780579847000,-293.17373989,0.00013698,2]
[424067063,1780579847000,-500.0,0.00013698,2]
[424067051,1780579847000,-500.0,0.00013698,2]
[424067057,1780579847000,-206.82626011,0.00013698,2]
[424067042,1780579847000,-511.37849875,0.00013698,2]
[424066999,1780579847000,-501.48144966,0.00013698,2]
[424067069,1780579847000,-500.0,0.00013698,2]
[424067053,1780579847000,-500.0,0.00013698,2]
[424067065,1780579847000,-537.3143065,0.00013698,2]
[424067067,1780579847000,-213.32221104,0.00013698,2]
[424067073,1780579847000,-500.32393438,0.00013698,2]
[424067071,1780579847000,-500.0,0.00013698,2]
[424067074,1780579847000,-129.86580819,0.00013698,2]
[424067049,1780579847000,-500.0,0.00013698,2]
[424067033,1780579847000,-500.0,0.00013698,2]
[424067055,1780579847000,-447.27077478,0.00013698,2]
[424067037,1780579847000,-500.0,0.00013698,2]
[424066998,1780579847000,-456.01642499,0.00013698,2]
[424067001,1780579847000,-500.0,0.00013698,2]
[424067003,1780579847000,-500.0,0.00013698,2]
[424067005,1780579847000,-500.0,0.00013698,2]
[424067009,1780579847000,-500.0,0.00013698,2]
[424067011,1780579847000,-500.0,0.00013698,2]
[424067007,1780579847000,-500.0,0.00013698,2]
[424067035,1780579847000,-500.0,0.00013698,2]
[424067020,1780579847000,-237.65972335,0.00013698,2]
[424067015,1780579847000,-500.0,0.00013698,2]
[424067022,1780579847000,-500.0,0.00013698,2]
[424067018,1780579847000,-500.0,0.00013698,2]
[424067024,1780579847000,-500.0,0.00013698,2]
[424067026,1780579847000,-811.46,0.00013698,2]
[424067028,1780579847000,-500.0,0.00013698,2]
[424067030,1780579847000,-500.0,0.00013698,2]
[424067032,1780579847000,-500.0,0.00013698,2]
[424067013,1780579847000,-500.68568476,0.00013698,2]
[424069170,1780581040000,-1267.67868723,0.00010131,2]
[424069172,1780581040000,-152.0,0.00010195,7]
[424069174,1780581040000,-5000.0,0.00010233,2]
[424069173,1780581040000,-152.0,0.00010198,7]
[424069175,1780581040000,-1837.0,0.0001174,2]
[424069171,1780581040000,-3732.32131277,0.00010131,2]
[424069181,1780581041000,-300.0,0.00011974,2]
[424069190,1780581041000,-300.0,0.00011974,2]
[424069184,1780581041000,-300.0,0.00011974,2]
[424069188,1780581041000,-300.0,0.00011974,2]
[424069179,1780581041000,-3631.0,0.0001174,2]
[424069182,1780581041000,-300.0,0.00011974,2]
[424069183,1780581041000,-300.0,0.00011974,2]
[424069186,1780581041000,-300.0,0.00011974,2]
[424069180,1780581041000,-266.24670013,0.00011929,3]
[424069178,1780581041000,-185.0,0.0001174,2]
[424069177,1780581041000,-930.57829466,0.0001174,2]
[424069176,1780581041000,-1275.42170534,0.0001174,2]
[424069185,1780581041000,-300.0,0.00011974,2]
[424069187,1780581041000,-300.0,0.00011974,2]
[424069189,1780581041000,-300.0,0.00011974,2]
[424069198,1780581041000,-49056.92946083,0.00012668,2]
[424069197,1780581041000,-220.52545907,0.00012667,2]
[424069200,1780581041000,-166.0,0.00012675,2]
[424069193,1780581041000,-300.0,0.00011974,2]
[424069202,1780581041000,-156.0,0.00012675,2]
[424069192,1780581041000,-300.0,0.00011974,2]
[424069195,1780581041000,-300.0,0.00011974,2]
[424069199,1780581041000,-166.0,0.00012675,2]
[424069201,1780581041000,-166.0,0.00012675,2]
[424069194,1780581041000,-300.0,0.00011974,2]
[424069196,1780581041000,-3756.40244799,0.00012575,2]
[424069204,1780581041000,-651.0,0.00012675,2]
[424069203,1780581041000,-156.0,0.00012675,2]
[424069206,1780581041000,-47.55619678,0.00013116,2]
[424069205,1780581041000,-800.0,0.00013104,2]
[424069191,1780581041000,-300.0,0.00011974,2]
[424069242,1780581049000,-152.0,0.00012477,2]
[424069247,1780581050000,-800.0,0.00013133,2]
[424069246,1780581050000,-752.44380322,0.00013116,2]
[424069244,1780581050000,-1159.81487735,0.00012985,2]
[424069251,1780581050000,-800.0,0.00013143,2]
[424069249,1780581050000,-800.0,0.00013134,2]
[424069253,1780581050000,-800.0,0.00013172,2]
[424069255,1780581050000,-800.0,0.0001318,2]
[424069261,1780581050000,-800.0,0.00013207,2]
[424069259,1780581050000,-800.0,0.00013202,2]
[424069257,1780581050000,-259.876,0.00013198,2]
[424069263,1780581050000,-166.0,0.00013221,2]
[424069268,1780581050000,-800.0,0.00013254,2]
[424069267,1780581050000,-818.40339924,0.00013249,2]
[424069270,1780581050000,-800.0,0.00013255,2]
[424069265,1780581050000,-156.0,0.00013221,2]
[424069274,1780581050000,-800.0,0.00013271,2]
[424069272,1780581050000,-800.0,0.00013255,2]
[424069301,1780581050000,-9.91620808,0.00013487,2]
[424069299,1780581050000,-427.96069102,0.00013443,2]
[424069298,1780581050000,-251.14816907,0.00013386,2]
[424069282,1780581050000,-800.0,0.00013313,2]
[424069293,1780581050000,-800.0,0.00013334,2]
[424069287,1780581050000,-543.94506301,0.00013329,2]
[424069300,1780581050000,-500.0,0.00013467,2]
[424069290,1780581050000,-256.05493699,0.00013329,2]
[424069296,1780581050000,-800.0,0.00013368,2]
[424069284,1780581050000,-800.0,0.00013315,2]
[424069279,1780581050000,-800.0,0.00013293,2]
[424069295,1780581050000,-800.0,0.00013352,2]
[424069277,1780581050000,-800.0,0.00013285,2]
[424069343,1780581051000,-15.68378872,0.00013487,2]
[424069430,1780582232000,-1837.0,0.0001174,2]
[424069435,1780582232000,-300.0,0.00011974,2]
[424069433,1780582232000,-446.986,0.0001174,2]
[424069441,1780582232000,-300.0,0.00011974,2]
[424069452,1780582232000,-720.0,0.00013171,2]
[424069447,1780582232000,-300.0,0.00011974,2]
[424069442,1780582232000,-300.0,0.00011974,2]
[424069436,1780582232000,-300.0,0.00011974,2]
[424069451,1780582232000,-207.9,0.00012836,2]
[424069440,1780582232000,-300.0,0.00011974,2]
[424069431,1780582232000,-2206.0,0.0001174,2]
[424069423,1780582232000,-438.23496928,0.00011507,2]
[424069434,1780582232000,-300.0,0.00011974,2]
[424069429,1780582232000,-246.972,0.0001174,2]
[424069439,1780582232000,-300.0,0.00011974,2]
[424069437,1780582232000,-300.0,0.00011974,2]
[424069438,1780582232000,-300.0,0.00011974,2]
[424069428,1780582232000,-632.94792557,0.00011507,2]
[424069421,1780582232000,-3531.24336618,0.00011507,2]
[424069419,1780582232000,-397.57373897,0.00011507,2]
[424069417,1780582232000,-152.0,0.00010199,7]
[424069448,1780582232000,-300.0,0.00011974,2]
[424069432,1780582232000,-3631.0,0.0001174,2]
[424069444,1780582232000,-300.0,0.00011974,2]
[424069462,1780582232000,-251.14816907,0.00013476,2]
[424069445,1780582232000,-300.0,0.00011974,2]
[424069470,1780582232000,-500.0,0.00013697,2]
[424069471,1780582232000,-500.0,0.00013697,2]
[424069469,1780582232000,-306.4367435,0.00013603,2]
[424069443,1780582232000,-300.0,0.00011974,2]
[424069472,1780582232000,-239.44221309,0.00013697,2]
[424069468,1780582232000,-156.12757092,0.00013603,2]
[424069466,1780582232000,-161.16671166,0.000136,2]
[424069464,1780582232000,-38.61090081,0.00013487,2]
[424069463,1780582232000,-735.78910239,0.00013487,2]
[424069461,1780582232000,-500.0,0.00013467,2]
[424069459,1780582232000,-800.0,0.00013384,2]
[424069467,1780582232000,-166.0,0.00013603,2]
[424069450,1780582232000,-283.92,0.00012558,2]
[424069458,1780582232000,-800.0,0.00013362,2]
[424069454,1780582232000,-800.0,0.00013253,2]
[424069457,1780582232000,-800.0,0.00013319,2]
[424069456,1780582232000,-800.0,0.00013302,2]
[424069465,1780582232000,-800.0,0.00013566,2]
[424069455,1780582232000,-693.93183609,0.000133,2]
[424069449,1780582232000,-600.0,0.00011974,2]
[424069453,1780582232000,-800.0,0.00013218,2]
[424069446,1780582232000,-300.0,0.00011974,2]
[424069460,1780582232000,-800.0,0.00013388,2]
[424070093,1780582246000,-500.0,0.00013697,2]
[424070095,1780582246000,-500.0,0.00013697,2]
[424070101,1780582246000,-500.0,0.00013697,2]
[424070099,1780582246000,-500.0,0.00013697,2]
[424070104,1780582246000,-500.0,0.00013697,2]
[424070082,1780582246000,-500.0,0.00013697,2]
[424070097,1780582246000,-500.0,0.00013697,2]
[424070091,1780582246000,-500.0,0.00013697,2]
[424070079,1780582246000,-500.0,0.00013697,2]
[424070075,1780582246000,-260.55778691,0.00013697,2]
[424070087,1780582246000,-500.0,0.00013697,2]
[424070085,1780582246000,-500.0,0.00013697,2]
[424070077,1780582246000,-500.0,0.00013697,2]
[424070074,1780582246000,-1326.58142635,0.0001356,2]
[424070083,1780582246000,-500.0,0.00013697,2]
[424070072,1780582246000,-152.0,0.00010199,7]
[424070089,1780582246000,-500.0,0.00013697,2]
[424070102,1780582246000,-500.0,0.00013697,2]
[424070139,1780582246000,-504.29832899,0.00013697,2]
[424070106,1780582246000,-500.0,0.00013697,2]
[424070144,1780582246000,-504.29832899,0.00013697,2]
[424070137,1780582246000,-504.29832899,0.00013697,2]
[424070112,1780582246000,-504.29832899,0.00013697,2]
[424070135,1780582246000,-504.29832899,0.00013697,2]
[424070133,1780582246000,-504.29832899,0.00013697,2]
[424070140,1780582246000,-504.29832899,0.00013697,2]
[424070131,1780582246000,-504.29832899,0.00013697,2]
[424070129,1780582246000,-504.29832899,0.00013697,2]
[424070142,1780582246000,-504.29832899,0.00013697,2]
[424070121,1780582246000,-504.29832899,0.00013697,2]
[424070125,1780582246000,-504.29832899,0.00013697,2]
[424070120,1780582246000,-504.29832899,0.00013697,2]
[424070118,1780582246000,-504.29832899,0.00013697,2]
[424070116,1780582246000,-504.29832899,0.00013697,2]
[424070110,1780582246000,-637.40134081,0.00013697,2]
[424070114,1780582246000,-504.29832899,0.00013697,2]
[424070108,1780582246000,-601.56862352,0.00013697,2]
[424070127,1780582246000,-504.29832899,0.00013697,2]
[424070154,1780582247000,-761.945496,0.00013698,2]
[424070156,1780582247000,-61.42368775,0.00013698,2]
[424070149,1780582247000,-2419.42594417,0.00013698,2]
[424070152,1780582247000,-2317.9591367,0.00013698,2]
[424070151,1780582247000,-1397.203,0.00013698,2]
[424070146,1780582247000,-504.29832899,0.00013697,2]
[424074074,1780582927000,673.40311777,7.6e-05,2]
[424074145,1780583432000,-401.49242311,0.00011673,2]
[424074194,1780583433000,-1122.0,0.00011921,2]
[424074192,1780583433000,-689.31286343,0.00011673,2]
[424074193,1780583433000,-322.005,0.00011791,2]
[424074197,1780583433000,-164.32591972,0.00011921,2]
[424074196,1780583433000,-135.67408028,0.00011921,2]
[424074199,1780583433000,-2206.0,0.00011922,2]
[424074198,1780583433000,-1200.0,0.00011921,2]
[424074200,1780583433000,-1208.40766307,0.00011922,2]